Cogmind - Beta 10.2 *** ADVENTURER MODE // 2021.10.02 @ 01:21:57 Player: Bob Result: Self-destructed Performance ------------- Evolutions (2) 1000 Regions Visited (4) 800 Robots Destroyed (20) 100 Value Destroyed (495) 495 Prototype IDs (0) 0 Alien Tech Used (0) 0 Bonus (0) 0 TOTAL SCORE: 2395 Bonus ------- None Cogmind --------- Core Integrity 516/550 Matter 289/300 Energy 240/240 System Corruption 0% Temperature Cool (0) Movement Core (300) Ox5 Location -8/Materials Parts ------- > --- POWER (1) -------- Nuclear Core > --- PROPULSION (2) --- (None) > --- UTILITY (6) ------ Medium Storage Unit > --- WEAPON (2) ------- Assault Rifle > --- INVENTORY (8) ---- Medium Laser Medium Laser Peak State ------------ > --- POWER ------------ Nuclear Core > --- PROPULSION ------- Light Treads Light Treads > --- UTILITY ---------- Heat Sink Heat Sink Medium Storage Unit Light Armor Plating Tractor Beam > --- WEAPON ----------- Assault Rifle Heavy Assault Rifle > --- INVENTORY -------- Improved Ion Engine Medium Laser Medium Laser [Rating: 13] Favorites ----------- Power Improved Ion Engine Engine Improved Ion Engine Power Core Nuclear Core Propulsion Light Treads Treads Light Treads Utility Heat Sink Device Heat Sink Storage Medium Storage Unit Protection Light Armor Plating Weapon Assault Rifle Energy Gun Beam Rifle Ballistic Gun Assault Rifle Build | -11 -10 -9 -9 -8 ------- Run | Scr Mat Mat Min Mat Slots Evolved 4 | . . 2 . 2 Power . | . . . . . Propulsion . | . . . . . Utility 4 | . . 2 . 2 Weapon . | . . . . . Parts Attached 17 | 6 2 7 . 2 Power 4 | 1 1 1 . 1 Engine 3 | 1 1 1 . . Core 1 | . . . . 1 Reactor . | . . . . . Propulsion 2 | 2 . . . . Treads 2 | 2 . . . . Leg . | . . . . . Wheel . | . . . . . Hover . | . . . . . Flight . | . . . . . Utility 6 | 1 1 3 . 1 Device 3 | . . 2 . 1 Storage 2 | 1 1 . . . Processor . | . . . . . Hackware . | . . . . . Protection 1 | . . 1 . . Artifact . | . . . . . Weapon 5 | 2 . 3 . . Energy Gun 1 | . . 1 . . Energy Cannon . | . . . . . Ballistic Gun 4 | 2 . 2 . . Ballistic Cannon . | . . . . . Launcher . | . . . . . Special Weapon . | . . . . . Impact Weapon . | . . . . . Slashing Weapon . | . . . . . Piercing Weapon . | . . . . . Special Melee Weapon . | . . . . . Unidentified Prototypes . | . . . . . Parts Lost 8 | . . 1 . 7 Power . | . . . . . Propulsion 2 | . . . . 2 Utility 4 | . . . . 4 Weapon 2 | . . 1 . 1 Highest Loss Streak 7 | . . 1 . 7 Average Slot Usage (%) 88 | . 85 87 100 78 Engine 11 | . 14 11 11 2 Treads 23 | . 28 22 22 18 Device 11 | . . 16 22 20 Storage 11 | . 14 11 11 9 Protection 4 | . . 5 11 3 Energy Gun 2 | . . 6 . . Ballistic Gun 21 | . 28 14 22 18 Naked Turns . | . . . . . Heaviest Build 26 | 13 17 26 25 26 Greatest Support 40 | 40 40 40 40 40 Greatest Overweight (x) . | . . . . . Average Overweight (x) . | . . . . . Largest Inventory Capacity 8 | 6 8 8 8 8 Average Capacity 7 | 5 7 8 8 8 Most Carried 6 | 2 2 6 3 3 Average Carried 2 | . . 3 3 2 Final Capacity 8 | 6 8 8 8 8 Final Carried 3 | . 2 3 3 2 Class Distribution -------------------- 53% | Mutant 46% | Scavenger-Mutant Dominant Class ---------------- Mutant | -10/Materials Scavenger-Mutant | -9/Materials Scavenger-Mutant | -9/Mines Mutant | -8/Materials Resources | -11 -10 -9 -9 -8 ----------- Run | Scr Mat Mat Min Mat Matter Collected 570 | 202 63 143 104 58 Remotely 58 | . . . . 58 Salvage Created 708 | . 240 363 . 105 Parts 37 | . 10 22 . 5 Haulers Intercepted 1 | . 1 . . . Recyclers Shooed . | . . . . . Parts Field Recycled . | . . . . . Retrieved Matter . | . . . . . Parts Self-Destructed . | . . . . . Prevented . | . . . . . Kills | -11 -10 -9 -9 -8 ------- Run | Scr Mat Mat Min Mat Combat Hostiles Destroyed 17 | . 4 11 . 2 Guns 17 | . 4 11 . 2 Classes Destroyed 6 | . 3 3 . . Hauler 1 | . 1 . . . Recycler 1 | . . 1 . . Watcher 1 | . 1 . . . Swarmer 7 | . . 7 . . Grunt 8 | . 4 2 . 2 Sentry 2 | . . 2 . . Best Kill Streak 4 | . 4 4 . 2 Combat Bots Only 4 | . 4 4 . 2 Max Kills in Single Turn 2 | . 2 2 . 1 Gunslinging 1 | . 1 1 . . Exploded . | . . . . . Melee . | . . . . . Uniques/NPCs Destroyed . | . . . . . Combat | -11 -10 -9 -9 -8 -------- Run | Scr Mat Mat Min Mat Damage Taken 897 | . 163 373 . 361 Core 115 | . 42 39 . 34 Absorbed by Shields . | . . . . . Core Remaining (%) 91 | 100 83 . 90 . Volleys Fired 55 | . 14 27 . 14 Largest 2 | . 2 2 . 2 Hottest 79 | . 40 79 . 43 Shots Fired 102 | . 28 46 . 28 Gun 102 | . 28 46 . 28 Cannon . | . . . . . Launcher . | . . . . . Special . | . . . . . Kinetic 85 | . 28 29 . 28 Thermal 17 | . . 17 . . Explosive . | . . . . . Electromagnetic . | . . . . . Robot Hit Streak 33 | . 27 33 . 11 Robot Miss Streak 3 | . . 3 . 1 Penetration Max . | . . . . . Secondary Targets 3 | . 2 1 . . Max Gunslinging Chain 1 | . 1 1 . . Shots Hit Robots 85 | . 27 35 . 23 Core Hits 35 | . 11 16 . 8 Critical Hits 1 | . . . . 1 Critical Kills . | . . . . . Critical Parts Destroyed 1 | . . . . 1 Melee Attacks . | . . . . . Impact . | . . . . . Slashing . | . . . . . Piercing . | . . . . . Sneak Attacks . | . . . . . Combat Hostiles . | . . . . . Follow-up Attacks . | . . . . . Damage Inflicted 1144 | . 338 501 . 305 Guns 1141 | . 335 501 . 305 Cannons . | . . . . . Explosions . | . . . . . Melee . | . . . . . Ramming 3 | . 3 . . . Kinetic 937 | . 335 297 . 305 Thermal 204 | . . 204 . . Explosive . | . . . . . Electromagnetic . | . . . . . Impact . | . . . . . Slashing . | . . . . . Piercing . | . . . . . Highest Corruption . | . . . . . Average Corruption . | . . . . . Corruption Purged . | . . . . . Overload Shots . | . . . . . Overflow Damage . | . . . . . Projectiles . | . . . . . Explosions . | . . . . . Melee . | . . . . . Knockbacks . | . . . . . Impact . | . . . . . Kinetic . | . . . . . Secondary . | . . . . . Self-Inflicted Damage . | . . . . . Shots . | . . . . . Rammed 1 | . 1 . . . Targets Rammed 1 | . 1 . . . Kicked . | . . . . . Crushed . | . . . . . Highest Temperature 8 | . 5 . . 8 Average Temperature 4 | . 2 . . 8 Received Heat Transfer 402 | . 123 99 . 180 Siege Activations . | . . . . . Robots Corrupted . | . . . . . Combat Hostiles . | . . . . . Parts Fried . | . . . . . Impact Corruptions . | . . . . . Robots Melted . | . . . . . Combat Hostiles . | . . . . . Parts Melted . | . . . . . Heat Transferred 518 | . . 518 . . Parts Sabotaged . | . . . . . Parts Stolen . | . . . . . Parts Stripped . | . . . . . Power Chain Reactions . | . . . . . Missiles Intercepted . | . . . . . Alert | -11 -10 -9 -9 -8 ------- Run | Scr Mat Mat Min Mat Peak Influence 348 | . 134 348 114 68 Initial 114 | . . 48 114 37 Average 123 | . 79 207 114 48 Maximum Alert Level 1 | . . 1 . . Low Security (%) 81 | 100 100 48 100 100 Level 1 18 | . . 51 . . Level 2 . | . . . . . Level 3 . | . . . . . Level 4 . | . . . . . Level 5 . | . . . . . High Security . | . . . . . Max Security . | . . . . . Squads Dispatched 3 | . . 1 . 2 Investigation . | . . . . . Extermination . | . . . . . Reinforcement 2 | . . 1 . 1 Assault . | . . . . . Garrison 1 | . . . . 1 Intercept . | . . . . . Construction Impeded . | . . . . . Haulers Reinforced . | . . . . . Stealth | -11 -10 -9 -9 -8 --------- Run | Scr Mat Mat Min Mat Distress Signals . | . . . . . Communications Jammed . | . . . . . Distress Signals . | . . . . . Times Spotted 29 | . 7 13 1 8 Peak Tracking Total 5 | . 4 4 1 5 Tactical Retreats 1 | . . 1 . . Traps | -11 -10 -9 -9 -8 ------- Run | Scr Mat Mat Min Mat Traps Triggered . | . . . . . Indirectly . | . . . . . Trap Hack Attempts . | . . . . . Triggered . | . . . . . Disarmed . | . . . . . Reprogrammed . | . . . . . Reused . | . . . . . Traps Extracted . | . . . . . Installed . | . . . . . Triggered . | . . . . . Machines | -11 -10 -9 -9 -8 ---------- Run | Scr Mat Mat Min Mat Machines Disabled . | . . . . . Max in Single Turn . | . . . . . Machines Sabotaged . | . . . . . Garrisons Compromised . | . . . . . Overloaded Fab Kills . | . . . . . Fab Network Shutdowns . | . . . . . Hacking | -11 -10 -9 -9 -8 --------- Run | Scr Mat Mat Min Mat Machines Accessed 2 | . . 2 . . Terminals 2 | . . 2 . . Fabricators . | . . . . . Repair Stations . | . . . . . Recycling Units . | . . . . . Scanalyzers . | . . . . . Garrison Access . | . . . . . Total Hacks 2 | . . 2 . . Successful 1 | . . 1 . . Failed 1 | . . 1 . . Catastrophic . | . . . . . Database Lockouts . | . . . . . Manual . | . . . . . Terminals 2 | . . 2 . . Fabricators . | . . . . . Repair Stations . | . . . . . Recycling Units . | . . . . . Scanalyzers . | . . . . . Garrison Access . | . . . . . Terminal Hacks 1 | . . 1 . . Maintenance Status 1 | . . 1 . . Fabricator Hacks . | . . . . . Repair Station Hacks . | . . . . . Recycling Unit Hacks . | . . . . . Scanalyzer . | . . . . . Garrison Access Hacks . | . . . . . Unauthorized Hacks . | . . . . . Terminals . | . . . . . Fabricators . | . . . . . Repair Stations . | . . . . . Recycling Units . | . . . . . Scanalyzers . | . . . . . Garrison Access . | . . . . . Data Cores Recovered . | . . . . . Used . | . . . . . Hacking Detections . | . . . . . Full Trace Events . | . . . . . Feedback Events . | . . . . . Feedback Blocked . | . . . . . Robot Schematics Acquired . | . . . . . Robots Built . | . . . . . Matter . | . . . . . Time . | . . . . . Total Robot Build Rating . | . . . . . Part Schematics Acquired . | . . . . . Parts Built . | . . . . . Matter . | . . . . . Time . | . . . . . Total Part Build Rating . | . . . . . Parts Repaired . | . . . . . Time . | . . . . . Parts Recycled . | . . . . . Recycled Matter . | . . . . . Retrieved Matter . | . . . . . Retrieved Components . | . . . . . Parts Scanalyzed . | . . . . . Part Schematics Acquired . | . . . . . Parts Damaged . | . . . . . Bothacking | -11 -10 -9 -9 -8 ------------ Run | Scr Mat Mat Min Mat Used RIF Installer . | . . . . . Robots Hacked . | . . . . . Non-combat . | . . . . . Combat . | . . . . . Robot Hacks Applied . | . . . . . Relay Couplers Released . | . . . . . Robots Rewired . | . . . . . Allies Hacked . | . . . . . Hacks Repelled . | . . . . . Allies | -11 -10 -9 -9 -8 -------- Run | Scr Mat Mat Min Mat Total Allies . | . . . . . Largest Group . | . . . . . Highest-Rated Group . | . . . . . Highest-Rated Ally . | . . . . . Total Orders . | . . . . . Ally Attacks . | . . . . . Total Damage . | . . . . . Kills . | . . . . . Allies Corrupted . | . . . . . Allies Melted . | . . . . . Intel | -11 -10 -9 -9 -8 ------- Run | Scr Mat Mat Min Mat Robot Analysis Total . | . . . . . Derelict Logs Recovered . | . . . . . Drone Launches . | . . . . . Drone Recoveries . | . . . . . Exploration | -11 -10 -9 -9 -8 ------------- Run | Scr Mat Mat Min Mat Turns Passed 974 | 60 332 345 168 69 Spaces Moved 477 | 32 172 154 105 14 Core 2 | 2 . . . . Treads 475 | 30 172 154 105 14 Legs . | . . . . . Wheels . | . . . . . Hover . | . . . . . Flight . | . . . . . Fastest Speed 50 | 50 160 160 160 160 Average Speed 159 | 153 160 160 160 160 Slowest Speed 160 | 160 160 160 160 160 Overloaded Moves . | . . . . . Propulsion Burnouts . | . . . . . Robots Hopped . | . . . . . Cave-ins Triggered . | . . . . . Exploration Rate (%) 18 | 4 36 22 25 4 Regions Visited 4 Branch Regions 1 Pre-discovered Areas . | . . . . . Known Exits Taken . | . . . . . Unknown Exits Taken 4 | 1 1 1 1 . Scrap Searched . | . . . . . Spaces Dug . | . . . . . Terrain Destroyed . | . . . . . Melee . | . . . . . Projectile . | . . . . . AOE . | . . . . . Terrain Rammed . | . . . . . Walls Destroyed . | . . . . . Machines Disabled . | . . . . . Actions | -11 -10 -9 -9 -8 --------- Run | Scr Mat Mat Min Mat Total 587 | 43 201 206 105 32 Wait 18 | . 7 10 1 . Move 473 | 31 171 153 104 14 Hop . | . . . . . Pick Up 18 | 6 4 7 . 1 Fast Attach . | . . . . . Attach 12 | 6 1 4 . 1 Detach . | . . . . . Swap 5 | . 1 3 . 1 Drop 5 | . 2 2 . 1 Fire 55 | . 14 27 . 14 Melee . | . . . . . Ram . | . . . . . Kick . | . . . . . Crush 1 | . 1 . . . Escape Stasis . | . . . . . Rewire . | . . . . . Trap . | . . . . . Miscellaneous . | . . . . . Route ------- -11/Scrapyard -10/Materials -9/Materials -9/Mines -8/Materials History --------- Turn | Location | Event 15 | -11/Scrapyard | Discovered new exit (range 15) 61 | -11/Scrapyard | Entered Materials 311 | -10/Materials | Build established: Mutant 361 | -10/Materials | Discovered new exit (range 8) 393 | -10/Materials | Entered another Materials area 393 | -9/Materials | Evolved 2 slots: Utility x2 714 | -9/Materials | Discovered new exit (range 8) 738 | -9/Materials | Entered Mines 739 | -9/Mines | Assembled infested the area 744 | -9/Mines | Assisted by a Guerilla fighting off Assembled 756 | -9/Mines | Build established: Scavenger-Mutant 896 | -9/Mines | Discovered new exit (range 5) 906 | -9/Mines | Entered Materials 906 | -8/Materials | Evolved 2 slots: Utility x2 972 | -8/Materials | Garrison activated, responded to threat 975 | -8/Materials | Self-destructed Last Messages --------------- 00949_ R-06 Scavenger collects Lgt. Nuclear Core. 00952_ R-06 Scavenger collects Aluminum Leg. 00953_ Acquired 58 matter. 00954_ T-07 Excavator is excavating. 00955_ R-06 Scavenger collects Imp. Heat Sink. 00959_ R-06 Scavenger collects Particle Gun. 00959_ T-07 Excavator is excavating. 00963_ L-31 Rogue suffers critical hit. 00963_ Destroyed Imp. Aluminum Leg. 00963_ T-07 Excavator is excavating. 00964_ Heat Sink destroyed. 00966_ Tractor Beam destroyed. 00967_ T-07 Excavator is excavating. 00971_ Lgt. Treads destroyed. 00972_ L-31 Rogue calls for garrison reinforcements. 00972_ ALERT: Activating Garrison Access M001. 00972_ Destroyed Melee Analysis Suite. 00973_ G-47 Trooper emerges from the garrison. 00974_ Lgt. Treads destroyed. 00974_ Hvy. Assault Rifle destroyed. Map ----- +----------------------------------------------------+ | ????????????????????????????????????????????? | | ????????????????????????????????????????????? | | ????????????????????????????????????????????? | | ????????????????????????????????????????????? | | ????????????????????????????????????????????? | | ????????????????????????????????????????????? | | ????????????????????????????????????????????? | | ????????????????????????????????????????????? | | ????????????????????????????????????????????? | | ????????????????????????????????????????????? | | ??????????????????????????? ????????????????? | | ??????????????????????????? ???????????????? | | ??????????????????????????? ???????????????? | | ??????????????????????#???? ???????????????? | | ??????????????????????# !???????????????? | | ??????????????????????# "" ????????????????? | | ??????????????????????# "G ??????####??????? | | ??????????????????????? "" ???### ???????? | | ?????????????????####??? %g???# ????????? | | ?????????????????? ####;###### ####??????? | | ???????????????????"" # #??????? | | ???????????????????T" + w #??????? | | ??????????????????????#ggT [!! #??????? | | ??????????????????????# [! #####??????? | | ??????????????????????# l [!* #??????????? | | ??????????????????????# ]@ #??????????? | | ??????????????????????# #??????????? | | ??????????????????????# r #??????????? | | ??????????????????????# #??????????? | | ??????????????????????# #??????????? | | ??????????????????????# #####??????????? | | ??????????????????????# #??????????????? | | ??????????????????????# #??????????????? | | ??????????????????????# #??????????????? | | ??????????????????????# #??????????????? | | ??????????????????????# k ??????????????? | | ??????????????????????# ??????????????? | | ?????????????????????? #?????????????? | | ?????????????????????? k #?????????????? | | ?????????????????????? #?????????????? | | ??????????????????????? ??????????????? | | ????????????????????????????????????????????? | | ????????????????????????????????????????????? | | ????????????????????????????????????????????? | | ????????????????????????????????????????????? | | ????????????????????????????????????????????? | | ????????????????????????????????????????????? | | ????????????????????????????????????????????? | | ????????????????????????????????????????????? | | ????????????????????????????????????????????? | +----------------------------------------------------+ Best States ------------- Heat Dissipation 51 Energy Generation 14 Energy Capacity 265 Matter Stores 300 Matter Capacity 300 Sight Range 16 Terrain Scan Density 10 Armor Coverage 150 Resistance: KI 20 Resistance: TH 20 Resistance: EX 20 Resistance: EM 20 Resistance: I 20 Resistance: S 20 Resistance: P 20 Evasion (%) 40 Recoil Reduction 2 Offensive Hacking 10 Item Schematics ----------------- None Robot Schematics ------------------ None Fabricated ------------ Nothing Alien Tech Used ----------------- None Achievements -------------- None Challenges ------------ None Game ------ Seed AngularLayeredHammer Manual? 0 Play Time 00:08:26 Cumulative 175.4 hours Start 2021.10.02 @ 01:14:34 End 2021.10.02 @ 01:21:57 Sessions 1 Manual Loads 0 Difficulty Adventurer Special Mode None Game No. 274 Rogue 241 Adventurer 33 Explorer 0 Win Type - Total 4 Types 1/1/0/2/0/0/0/0/0 Lore% 50 Gallery% 65 Achievement% 51 Wizard Run 0 Options --------- ASCII 0 Keyboard 0 Movement Arrows Keybinds 0 Fullscreen 0 Font 16/SmallcapsGlow Map View 76x50 Tactical HUD 1 Map Filters NONE Filters NONE Steam 1 RUN: 569e49cb-9fba-49ce-96a3-91a4e3cd6174